{"text_format":"3","workbook":"xlsx","n_sheets":1,"sheets":["Vuosittainen työaikaraportti"],"not_rendered":{"defined_names":2},"read":"whole","date_system":"1900"}

{"sheet":"Vuosittainen työaikaraportti","index":0,"n_rows":140,"n_cols":12,"rows_kept":140,"merged":[[0,1,1,11],[2,6,2,7],[2,8,2,9],[5,1,5,11],[39,1,39,11],[73,1,73,11],[107,1,107,11]]}
[null,"Työntekijän kellokortti"]
[]
[null,"Työntekijän nimi:",null,"Sähköposti:",null,null,"Vuoden summat tähän päivään asti:"]
[null,"Esimies:",null,"Puhelin:",null,null,"Normaalit työtunnit:",{"$f":"SUM(C16,C27,C38,C50,C61,C72,C84,C95,C106,C118,C129,C140)","v":0},"Ylityötunnit:",{"$f":"SUM(F16,F27,F38,F50,F61,F72,F84,F95,F106,F118,F129,F140)","v":0},"Yhteensä:",{"$f":"SUM(H4:J4)","v":0}]
[]
[null,"Tammikuu, helmikuu, maaliskuu      Työntekijän kellokortti: Päivittäin, viikoittain, kuukausittain, vuosittain"]
[null,"Tammikuu","Viikko 1","Ylityö","Viikko 2","Ylityö ","Viikko 3","Ylityö  ","Viikko 4","Ylityö   ","Viikko 5","Ylityö    "]
[null,"Maanantai"]
[null,"Tiistai"]
[null,"Keskiviikko"]
[null,"Torstai"]
[null,"Perjantai"]
[null,"Lauantai"]
[null,"Sunnuntai"]
[null,"Viikoittaiset työtunnit yhteensä",{"$f":"SUBTOTAL(109,Tammikuu[Viikko 1])","v":0},{"$f":"SUBTOTAL(109,Tammikuu[Ylityö])","v":0},{"$f":"SUBTOTAL(109,Tammikuu[Viikko 2])","v":0},{"$f":"SUBTOTAL(109,Tammikuu[[Ylityö ]])","v":0},{"$f":"SUBTOTAL(109,Tammikuu[Viikko 3])","v":0},{"$f":"SUBTOTAL(109,Tammikuu[[Ylityö  ]])","v":0},{"$f":"SUBTOTAL(109,Tammikuu[Viikko 4])","v":0},{"$f":"SUBTOTAL(109,Tammikuu[[Ylityö   ]])","v":0},{"$f":"SUBTOTAL(109,Tammikuu[Viikko 5])","v":0},{"$f":"SUBTOTAL(109,Tammikuu[[Ylityö    ]])","v":0}]
[null,"Tammikuu yhteensä: Normaalit työtunnit",{"$f":"SUM(Tammikuu[[#Totals],[Viikko 1]],Tammikuu[[#Totals],[Viikko 2]],Tammikuu[[#Totals],[Viikko 3]],Tammikuu[[#Totals],[Viikko 4]],Tammikuu[[#Totals],[Viikko 5]])","v":0},"Tammikuu yhteensä: Ylityö",null,{"$f":"SUM(Tammikuu[[#Totals],[Ylityö]],Tammikuu[[#Totals],[Ylityö ]],Tammikuu[[#Totals],[Ylityö  ]],Tammikuu[[#Totals],[Ylityö   ]],Tammikuu[[#Totals],[Ylityö    ]])","v":0}]
[]
[null,"Helmikuu","Viikko 1","Ylityö","Viikko 2","Ylityö ","Viikko 3","Ylityö  ","Viikko 4","Ylityö   ","Viikko 5","Ylityö    "]
[null,"Maanantai"]
[null,"Tiistai"]
[null,"Keskiviikko"]
[null,"Torstai"]
[null,"Perjantai"]
[null,"Lauantai"]
[null,"Sunnuntai"]
[null,"Viikoittaiset työtunnit yhteensä",{"$f":"SUBTOTAL(109,Helmikuu[Viikko 1])","v":0},{"$f":"SUBTOTAL(109,Helmikuu[Ylityö])","v":0},{"$f":"SUBTOTAL(109,Helmikuu[Viikko 2])","v":0},{"$f":"SUBTOTAL(109,Helmikuu[[Ylityö ]])","v":0},{"$f":"SUBTOTAL(109,Helmikuu[Viikko 3])","v":0},{"$f":"SUBTOTAL(109,Helmikuu[[Ylityö  ]])","v":0},{"$f":"SUBTOTAL(109,Helmikuu[Viikko 4])","v":0},{"$f":"SUBTOTAL(109,Helmikuu[[Ylityö   ]])","v":0},{"$f":"SUBTOTAL(109,Helmikuu[Viikko 5])","v":0},{"$f":"SUBTOTAL(109,Helmikuu[[Ylityö    ]])","v":0}]
[null,"Helmikuu yhteensä: Normaalit työtunnit",{"$f":"SUM(Helmikuu[[#Totals],[Viikko 1]],Helmikuu[[#Totals],[Viikko 2]],Helmikuu[[#Totals],[Viikko 3]],Helmikuu[[#Totals],[Viikko 4]],Helmikuu[[#Totals],[Viikko 5]])","v":0},"Helmikuu yhteensä: Ylityö",null,{"$f":"SUM(Helmikuu[[#Totals],[Ylityö]],Helmikuu[[#Totals],[Ylityö ]],Helmikuu[[#Totals],[Ylityö  ]],Helmikuu[[#Totals],[Ylityö   ]],Helmikuu[[#Totals],[Ylityö    ]])","v":0}]
[]
[null,"Maaliskuu","Viikko 1","Ylityö","Viikko 2","Ylityö ","Viikko 3","Ylityö  ","Viikko 4","Ylityö   ","Viikko 5","Ylityö    "]
[null,"Maanantai"]
[null,"Tiistai"]
[null,"Keskiviikko"]
[null,"Torstai"]
[null,"Perjantai"]
[null,"Lauantai"]
[null,"Sunnuntai"]
[null,"Viikoittaiset työtunnit yhteensä",{"$f":"SUBTOTAL(109,Maaliskuu[Viikko 1])","v":0},{"$f":"SUBTOTAL(109,Maaliskuu[Ylityö])","v":0},{"$f":"SUBTOTAL(109,Maaliskuu[Viikko 2])","v":0},{"$f":"SUBTOTAL(109,Maaliskuu[[Ylityö ]])","v":0},{"$f":"SUBTOTAL(109,Maaliskuu[Viikko 3])","v":0},{"$f":"SUBTOTAL(109,Maaliskuu[[Ylityö  ]])","v":0},{"$f":"SUBTOTAL(109,Maaliskuu[Viikko 4])","v":0},{"$f":"SUBTOTAL(109,Maaliskuu[[Ylityö   ]])","v":0},{"$f":"SUBTOTAL(109,Maaliskuu[Viikko 5])","v":0},{"$f":"SUBTOTAL(109,Maaliskuu[[Ylityö    ]])","v":0}]
[null,"Maaliskuu yhteensä: Normaalit työtunnit",{"$f":"SUM(Maaliskuu[[#Totals],[Viikko 1]],Maaliskuu[[#Totals],[Viikko 2]],Maaliskuu[[#Totals],[Viikko 3]],Maaliskuu[[#Totals],[Viikko 4]],Maaliskuu[[#Totals],[Viikko 5]])","v":0},"Maaliskuu yhteensä: Ylityö",null,{"$f":"SUM(Maaliskuu[[#Totals],[Ylityö]],Maaliskuu[[#Totals],[Ylityö ]],Maaliskuu[[#Totals],[Ylityö  ]],Maaliskuu[[#Totals],[Ylityö   ]],Maaliskuu[[#Totals],[Ylityö    ]])","v":0}]
[]
[null,"Huhtikuu, toukokuu, kesäkuu      Työntekijän kellokortti: Päivittäin, viikoittain, kuukausittain, vuosittain"]
[null,"Huhtikuu","Viikko 1","Ylityö","Viikko 2","Ylityö ","Viikko 3","Ylityö  ","Viikko 4","Ylityö   ","Viikko 5","Ylityö    "]
[null,"Maanantai"]
[null,"Tiistai"]
[null,"Keskiviikko"]
[null,"Torstai"]
[null,"Perjantai"]
[null,"Lauantai"]
[null,"Sunnuntai"]
[null,"Viikoittaiset työtunnit yhteensä",{"$f":"SUBTOTAL(109,Huhtikuu[Viikko 1])","v":0},{"$f":"SUBTOTAL(109,Huhtikuu[Ylityö])","v":0},{"$f":"SUBTOTAL(109,Huhtikuu[Viikko 2])","v":0},{"$f":"SUBTOTAL(109,Huhtikuu[[Ylityö ]])","v":0},{"$f":"SUBTOTAL(109,Huhtikuu[Viikko 3])","v":0},{"$f":"SUBTOTAL(109,Huhtikuu[[Ylityö  ]])","v":0},{"$f":"SUBTOTAL(109,Huhtikuu[Viikko 4])","v":0},{"$f":"SUBTOTAL(109,Huhtikuu[[Ylityö   ]])","v":0},{"$f":"SUBTOTAL(109,Huhtikuu[Viikko 5])","v":0},{"$f":"SUBTOTAL(109,Huhtikuu[[Ylityö    ]])","v":0}]
[null,"Huhtikuu yhteensä: Normaalit työtunnit",{"$f":"SUM(Huhtikuu[[#Totals],[Viikko 1]],Huhtikuu[[#Totals],[Viikko 2]],Huhtikuu[[#Totals],[Viikko 3]],Huhtikuu[[#Totals],[Viikko 4]],Huhtikuu[[#Totals],[Viikko 5]])","v":0},"Huhtikuu yhteensä: Ylityö",null,{"$f":"SUM(Huhtikuu[[#Totals],[Ylityö]],Huhtikuu[[#Totals],[Ylityö ]],Huhtikuu[[#Totals],[Ylityö  ]],Huhtikuu[[#Totals],[Ylityö   ]],Huhtikuu[[#Totals],[Ylityö    ]])","v":0}]
[]
[null,"Toukokuu","Viikko 1","Ylityö","Viikko 2","Ylityö ","Viikko 3","Ylityö  ","Viikko 4","Ylityö   ","Viikko 5","Ylityö    "]
[null,"Maanantai"]
[null,"Tiistai"]
[null,"Keskiviikko"]
[null,"Torstai"]
[null,"Perjantai"]
[null,"Lauantai"]
[null,"Sunnuntai"]
[null,"Viikoittaiset työtunnit yhteensä",{"$f":"SUBTOTAL(109,Toukokuu[Viikko 1])","v":0},{"$f":"SUBTOTAL(109,Toukokuu[Ylityö])","v":0},{"$f":"SUBTOTAL(109,Toukokuu[Viikko 2])","v":0},{"$f":"SUBTOTAL(109,Toukokuu[[Ylityö ]])","v":0},{"$f":"SUBTOTAL(109,Toukokuu[Viikko 3])","v":0},{"$f":"SUBTOTAL(109,Toukokuu[[Ylityö  ]])","v":0},{"$f":"SUBTOTAL(109,Toukokuu[Viikko 4])","v":0},{"$f":"SUBTOTAL(109,Toukokuu[[Ylityö   ]])","v":0},{"$f":"SUBTOTAL(109,Toukokuu[Viikko 5])","v":0},{"$f":"SUBTOTAL(109,Toukokuu[[Ylityö    ]])","v":0}]
[null,"Toukokuu yhteensä: Normaalit työtunnit",{"$f":"SUM(Toukokuu[[#Totals],[Viikko 1]],Toukokuu[[#Totals],[Viikko 2]],Toukokuu[[#Totals],[Viikko 3]],Toukokuu[[#Totals],[Viikko 4]],Toukokuu[[#Totals],[Viikko 5]])","v":0},"Toukokuu yhteensä: Ylityö",null,{"$f":"SUM(Toukokuu[[#Totals],[Ylityö]],Toukokuu[[#Totals],[Ylityö ]],Toukokuu[[#Totals],[Ylityö  ]],Toukokuu[[#Totals],[Ylityö   ]],Toukokuu[[#Totals],[Ylityö    ]])","v":0}]
[]
[null,"Kesäkuu","Viikko 1","Ylityö","Viikko 2","Ylityö ","Viikko 3","Ylityö  ","Viikko 4","Ylityö   ","Viikko 5","Ylityö    "]
[null,"Maanantai"]
[null,"Tiistai"]
[null,"Keskiviikko"]
[null,"Torstai"]
[null,"Perjantai"]
[null,"Lauantai"]
[null,"Sunnuntai"]
[null,"Viikoittaiset työtunnit yhteensä",{"$f":"SUBTOTAL(109,Kesäkuu[Viikko 1])","v":0},{"$f":"SUBTOTAL(109,Kesäkuu[Ylityö])","v":0},{"$f":"SUBTOTAL(109,Kesäkuu[Viikko 2])","v":0},{"$f":"SUBTOTAL(109,Kesäkuu[[Ylityö ]])","v":0},{"$f":"SUBTOTAL(109,Kesäkuu[Viikko 3])","v":0},{"$f":"SUBTOTAL(109,Kesäkuu[[Ylityö  ]])","v":0},{"$f":"SUBTOTAL(109,Kesäkuu[Viikko 4])","v":0},{"$f":"SUBTOTAL(109,Kesäkuu[[Ylityö   ]])","v":0},{"$f":"SUBTOTAL(109,Kesäkuu[Viikko 5])","v":0},{"$f":"SUBTOTAL(109,Kesäkuu[[Ylityö    ]])","v":0}]
[null,"Kesäkuu yhteensä: Normaalit työtunnit",{"$f":"SUM(Kesäkuu[[#Totals],[Viikko 1]],Kesäkuu[[#Totals],[Viikko 2]],Kesäkuu[[#Totals],[Viikko 3]],Kesäkuu[[#Totals],[Viikko 4]],Kesäkuu[[#Totals],[Viikko 5]])","v":0},"Kesäkuu yhteensä: Ylityö",null,{"$f":"SUM(Kesäkuu[[#Totals],[Ylityö]],Kesäkuu[[#Totals],[Ylityö ]],Kesäkuu[[#Totals],[Ylityö  ]],Kesäkuu[[#Totals],[Ylityö   ]],Kesäkuu[[#Totals],[Ylityö    ]])","v":0}]
[]
[null,"Heinäkuu, elokuu, syyskuu      Työntekijän kellokortti: Päivittäin, viikoittain, kuukausittain, vuosittain"]
[null,"Heinäkuu","Viikko 1","Ylityö","Viikko 2","Ylityö ","Viikko 3","Ylityö  ","Viikko 4","Ylityö   ","Viikko 5","Ylityö    "]
[null,"Maanantai"]
[null,"Tiistai"]
[null,"Keskiviikko"]
[null,"Torstai"]
[null,"Perjantai"]
[null,"Lauantai"]
[null,"Sunnuntai"]
[null,"Viikoittaiset työtunnit yhteensä",{"$f":"SUBTOTAL(109,Heinäkuu[Viikko 1])","v":0},{"$f":"SUBTOTAL(109,Heinäkuu[Ylityö])","v":0},{"$f":"SUBTOTAL(109,Heinäkuu[Viikko 2])","v":0},{"$f":"SUBTOTAL(109,Heinäkuu[[Ylityö ]])","v":0},{"$f":"SUBTOTAL(109,Heinäkuu[Viikko 3])","v":0},{"$f":"SUBTOTAL(109,Heinäkuu[[Ylityö  ]])","v":0},{"$f":"SUBTOTAL(109,Heinäkuu[Viikko 4])","v":0},{"$f":"SUBTOTAL(109,Heinäkuu[[Ylityö   ]])","v":0},{"$f":"SUBTOTAL(109,Heinäkuu[Viikko 5])","v":0},{"$f":"SUBTOTAL(109,Heinäkuu[[Ylityö    ]])","v":0}]
[null,"Heinäkuu yhteensä: Normaalit työtunnit",{"$f":"SUM(Heinäkuu[[#Totals],[Viikko 1]],Heinäkuu[[#Totals],[Viikko 2]],Heinäkuu[[#Totals],[Viikko 3]],Heinäkuu[[#Totals],[Viikko 4]],Heinäkuu[[#Totals],[Viikko 5]])","v":0},"Heinäkuu yhteensä: Ylityö",null,{"$f":"SUM(Heinäkuu[[#Totals],[Ylityö]],Heinäkuu[[#Totals],[Ylityö ]],Heinäkuu[[#Totals],[Ylityö  ]],Heinäkuu[[#Totals],[Ylityö   ]],Heinäkuu[[#Totals],[Ylityö    ]])","v":0}]
[]
[null,"Elokuu","Viikko 1","Ylityö","Viikko 2","Ylityö ","Viikko 3","Ylityö  ","Viikko 4","Ylityö   ","Viikko 5","Ylityö    "]
[null,"Maanantai"]
[null,"Tiistai"]
[null,"Keskiviikko"]
[null,"Torstai"]
[null,"Perjantai"]
[null,"Lauantai"]
[null,"Sunnuntai"]
[null,"Viikoittaiset työtunnit yhteensä",{"$f":"SUBTOTAL(109,Elokuu[Viikko 1])","v":0},{"$f":"SUBTOTAL(109,Elokuu[Ylityö])","v":0},{"$f":"SUBTOTAL(109,Elokuu[Viikko 2])","v":0},{"$f":"SUBTOTAL(109,Elokuu[[Ylityö ]])","v":0},{"$f":"SUBTOTAL(109,Elokuu[Viikko 3])","v":0},{"$f":"SUBTOTAL(109,Elokuu[[Ylityö  ]])","v":0},{"$f":"SUBTOTAL(109,Elokuu[Viikko 4])","v":0},{"$f":"SUBTOTAL(109,Elokuu[[Ylityö   ]])","v":0},{"$f":"SUBTOTAL(109,Elokuu[Viikko 5])","v":0},{"$f":"SUBTOTAL(109,Elokuu[[Ylityö    ]])","v":0}]
[null,"Elokuu yhteensä: Normaalit työtunnit",{"$f":"SUM(Elokuu[[#Totals],[Viikko 1]],Elokuu[[#Totals],[Viikko 2]],Elokuu[[#Totals],[Viikko 3]],Elokuu[[#Totals],[Viikko 4]],Elokuu[[#Totals],[Viikko 5]])","v":0},"Elokuu yhteensä: Ylityö",null,{"$f":"SUM(Elokuu[[#Totals],[Ylityö]],Elokuu[[#Totals],[Ylityö ]],Elokuu[[#Totals],[Ylityö  ]],Elokuu[[#Totals],[Ylityö   ]],Elokuu[[#Totals],[Ylityö    ]])","v":0}]
[]
[null,"Syyskuu","Viikko 1","Ylityö","Viikko 2","Ylityö ","Viikko 3","Ylityö  ","Viikko 4","Ylityö   ","Viikko 5","Ylityö    "]
[null,"Maanantai"]
[null,"Tiistai"]
[null,"Keskiviikko"]
[null,"Torstai"]
[null,"Perjantai"]
[null,"Lauantai"]
[null,"Sunnuntai"]
[null,"Viikoittaiset työtunnit yhteensä",{"$f":"SUBTOTAL(109,Syyskuu[Viikko 1])","v":0},{"$f":"SUBTOTAL(109,Syyskuu[Ylityö])","v":0},{"$f":"SUBTOTAL(109,Syyskuu[Viikko 2])","v":0},{"$f":"SUBTOTAL(109,Syyskuu[[Ylityö ]])","v":0},{"$f":"SUBTOTAL(109,Syyskuu[Viikko 3])","v":0},{"$f":"SUBTOTAL(109,Syyskuu[[Ylityö  ]])","v":0},{"$f":"SUBTOTAL(109,Syyskuu[Viikko 4])","v":0},{"$f":"SUBTOTAL(109,Syyskuu[[Ylityö   ]])","v":0},{"$f":"SUBTOTAL(109,Syyskuu[Viikko 5])","v":0},{"$f":"SUBTOTAL(109,Syyskuu[[Ylityö    ]])","v":0}]
[null,"Syyskuu yhteensä: Normaalit työtunnit",{"$f":"SUM(Syyskuu[[#Totals],[Viikko 1]],Syyskuu[[#Totals],[Viikko 2]],Syyskuu[[#Totals],[Viikko 3]],Syyskuu[[#Totals],[Viikko 4]],Syyskuu[[#Totals],[Viikko 5]])","v":0},"Syyskuu yhteensä: Ylityö",null,{"$f":"SUM(Syyskuu[[#Totals],[Ylityö]],Syyskuu[[#Totals],[Ylityö ]],Syyskuu[[#Totals],[Ylityö  ]],Syyskuu[[#Totals],[Ylityö   ]],Syyskuu[[#Totals],[Ylityö    ]])","v":0}]
[]
[null,"Lokakuu, marraskuu, joulukuu      Työntekijän kellokortti: Päivittäin, viikoittain, kuukausittain, vuosittain"]
[null,"Lokakuu","Viikko 1","Ylityö","Viikko 2","Ylityö ","Viikko 3","Ylityö  ","Viikko 4","Ylityö   ","Viikko 5","Ylityö    "]
[null,"Maanantai"]
[null,"Tiistai"]
[null,"Keskiviikko"]
[null,"Torstai"]
[null,"Perjantai"]
[null,"Lauantai"]
[null,"Sunnuntai"]
[null,"Viikoittaiset työtunnit yhteensä",{"$f":"SUBTOTAL(109,Lokakuu[Viikko 1])","v":0},{"$f":"SUBTOTAL(109,Lokakuu[Ylityö])","v":0},{"$f":"SUBTOTAL(109,Lokakuu[Viikko 2])","v":0},{"$f":"SUBTOTAL(109,Lokakuu[[Ylityö ]])","v":0},{"$f":"SUBTOTAL(109,Lokakuu[Viikko 3])","v":0},{"$f":"SUBTOTAL(109,Lokakuu[[Ylityö  ]])","v":0},{"$f":"SUBTOTAL(109,Lokakuu[Viikko 4])","v":0},{"$f":"SUBTOTAL(109,Lokakuu[[Ylityö   ]])","v":0},{"$f":"SUBTOTAL(109,Lokakuu[Viikko 5])","v":0},{"$f":"SUBTOTAL(109,Lokakuu[[Ylityö    ]])","v":0}]
[null,"Lokakuu yhteensä: Normaalit työtunnit",{"$f":"SUM(Lokakuu[[#Totals],[Viikko 1]],Lokakuu[[#Totals],[Viikko 2]],Lokakuu[[#Totals],[Viikko 3]],Lokakuu[[#Totals],[Viikko 4]],Lokakuu[[#Totals],[Viikko 5]])","v":0},"Lokakuu yhteensä: Ylityö",null,{"$f":"SUM(Lokakuu[[#Totals],[Ylityö]],Lokakuu[[#Totals],[Ylityö ]],Lokakuu[[#Totals],[Ylityö  ]],Lokakuu[[#Totals],[Ylityö   ]],Lokakuu[[#Totals],[Ylityö    ]])","v":0}]
[]
[null,"Marraskuu","Viikko 1","Ylityö","Viikko 2","Ylityö ","Viikko 3","Ylityö  ","Viikko 4","Ylityö   ","Viikko 5","Ylityö    "]
[null,"Maanantai"]
[null,"Tiistai"]
[null,"Keskiviikko"]
[null,"Torstai"]
[null,"Perjantai"]
[null,"Lauantai"]
[null,"Sunnuntai"]
[null,"Viikoittaiset työtunnit yhteensä",{"$f":"SUBTOTAL(109,Marraskuu[Viikko 1])","v":0},{"$f":"SUBTOTAL(109,Marraskuu[Ylityö])","v":0},{"$f":"SUBTOTAL(109,Marraskuu[Viikko 2])","v":0},{"$f":"SUBTOTAL(109,Marraskuu[[Ylityö ]])","v":0},{"$f":"SUBTOTAL(109,Marraskuu[Viikko 3])","v":0},{"$f":"SUBTOTAL(109,Marraskuu[[Ylityö  ]])","v":0},{"$f":"SUBTOTAL(109,Marraskuu[Viikko 4])","v":0},{"$f":"SUBTOTAL(109,Marraskuu[[Ylityö   ]])","v":0},{"$f":"SUBTOTAL(109,Marraskuu[Viikko 5])","v":0},{"$f":"SUBTOTAL(109,Marraskuu[[Ylityö    ]])","v":0}]
[null,"Marraskuu yhteensä: Normaalit työtunnit",{"$f":"SUM(Marraskuu[[#Totals],[Viikko 1]],Marraskuu[[#Totals],[Viikko 2]],Marraskuu[[#Totals],[Viikko 3]],Marraskuu[[#Totals],[Viikko 4]],Marraskuu[[#Totals],[Viikko 5]])","v":0},"Marraskuu yhteensä: Ylityö",null,{"$f":"SUM(Marraskuu[[#Totals],[Ylityö]],Marraskuu[[#Totals],[Ylityö ]],Marraskuu[[#Totals],[Ylityö  ]],Marraskuu[[#Totals],[Ylityö   ]],Marraskuu[[#Totals],[Ylityö    ]])","v":0}]
[]
[null,"Joulukuu","Viikko 1","Ylityö","Viikko 2","Ylityö ","Viikko 3","Ylityö  ","Viikko 4","Ylityö   ","Viikko 5","Ylityö    "]
[null,"Maanantai"]
[null,"Tiistai"]
[null,"Keskiviikko"]
[null,"Torstai"]
[null,"Perjantai"]
[null,"Lauantai"]
[null,"Sunnuntai"]
[null,"Viikoittaiset työtunnit yhteensä",{"$f":"SUBTOTAL(109,Joulukuu[Viikko 1])","v":0},{"$f":"SUBTOTAL(109,Joulukuu[Ylityö])","v":0},{"$f":"SUBTOTAL(105,Joulukuu[Viikko 2])","v":0},{"$f":"SUBTOTAL(109,Joulukuu[[Ylityö ]])","v":0},{"$f":"SUBTOTAL(109,Joulukuu[Viikko 3])","v":0},{"$f":"SUBTOTAL(109,Joulukuu[[Ylityö  ]])","v":0},{"$f":"SUBTOTAL(109,Joulukuu[Viikko 4])","v":0},{"$f":"SUBTOTAL(109,Joulukuu[[Ylityö   ]])","v":0},{"$f":"SUBTOTAL(109,Joulukuu[Viikko 5])","v":0},{"$f":"SUBTOTAL(109,Joulukuu[[Ylityö    ]])","v":0}]
[null,"Joulukuu yhteensä: Normaalit työtunnit",{"$f":"SUM(Joulukuu[[#Totals],[Viikko 1]],Joulukuu[[#Totals],[Viikko 2]],Joulukuu[[#Totals],[Viikko 3]],Joulukuu[[#Totals],[Viikko 4]],Joulukuu[[#Totals],[Viikko 5]])","v":0},"Joulukuu yhteensä: Ylityö",null,{"$f":"SUM(Joulukuu[[#Totals],[Ylityö]],Joulukuu[[#Totals],[Ylityö ]],Joulukuu[[#Totals],[Ylityö  ]],Joulukuu[[#Totals],[Ylityö   ]],Joulukuu[[#Totals],[Ylityö    ]])","v":0}]